bitfinex/quotes_BTCUSD_20251102
["timestamp","ask_amount","ask_price","bid_price","bid_amount"]
[1762097833548,0.22908278,110630.0,110620.0,0.18484757]
[1762097836880,0.0483,110630.0,110620.0,0.18484757]
[1762097837319,0.22908278,110630.0,110620.0,0.18484757]
[1762097837539,0.0483,110630.0,110620.0,0.18484757]
[1762097837978,0.0473,110630.0,110620.0,0.18484757]
[1762097838210,0.00693,110630.0,110620.0,0.23773757]
[1762097838432,0.21523898,110640.0,110630.0,0.18078278]
[1762097838905,0.23024898,110640.0,110630.0,0.18078278]
[1762097839126,0.04948,110640.0,110630.0,0.20276278]
[1762097839355,0.04948,110640.0,110630.0,0.22993471]
[1762097839566,0.04948,110640.0,110630.0,0.21484471]
[1762097840222,0.04948,110640.0,110630.0,0.23093471]
[1762097840643,0.04948,110640.0,110630.0,0.23293471]
[1762097841506,0.23024644,110640.0,110630.0,0.03017193]
[1762097843720,0.34874803,110640.0,110630.0,0.03017193]
[1762097844357,0.32051137,110640.0,110630.0,0.003]
[1762097845402,0.34874803,110640.0,110630.0,0.003]
[1762097846538,0.32051137,110640.0,110630.0,0.003]
[1762097857109,0.34874803,110640.0,110630.0,0.003]
[1762097860555,0.68874803,110640.0,110630.0,0.003]
[1762097860736,0.70828248,110640.0,110630.0,0.003]
[1762097862715,0.7111123,110640.0,110630.0,0.003]
[1762097863142,0.9111123,110640.0,110630.0,0.001]
[1762097863527,0.9121123,110640.0,110630.0,0.001]
[1762097863723,0.52078278,110630.0,110620.0,0.00404844]
[1762097863907,0.59891944,110630.0,110620.0,0.00404844]
[1762097865122,0.59891944,110630.0,110620.0,0.00504844]
[1762097865746,0.59891944,110630.0,110620.0,0.00704844]
[1762097868142,0.57068278,110630.0,110620.0,0.18784757]
[1762097868328,0.02693,110630.0,110620.0,0.20320757]
[1762097868528,0.05118,110630.0,110620.0,0.20320757]
[1762097868717,0.05118,110630.0,110620.0,0.23038208]
[1762097869797,0.02693,110630.0,110620.0,0.24087208]
[1762097869999,0.01191,110630.0,110620.0,0.26426208]
[1762097870418,0.02697,110630.0,110620.0,0.26426208]
[1762097870623,0.02697,110630.0,110620.0,0.24087208]
[1762097870838,0.05122,110630.0,110620.0,0.24087208]
[1762097872399,0.03551,110640.0,110630.0,0.18078278]
[1762097872627,0.05057,110640.0,110630.0,0.19614278]
[1762097872845,0.05057,110640.0,110630.0,0.20203278]
[1762097873507,0.01126,110640.0,110630.0,0.22542278]
[1762097873743,0.01126,110640.0,110630.0,0.25259471]
[1762097873958,0.02632,110640.0,110630.0,0.25259471]
[1762097874183,0.02632,110640.0,110630.0,0.22920471]
[1762097874399,0.01126,110640.0,110630.0,0.25259471]
[1762097874617,0.01226,110640.0,110630.0,0.25259471]
[1762097874823,0.02732,110640.0,110630.0,0.25259471]
[1762097875044,0.02632,110640.0,110630.0,0.25259471]
[1762097875480,0.20708644,110640.0,110630.0,0.23120471]
[1762097875690,0.21627644,110640.0,110630.0,0.21584471]
[1762097875916,0.19201814,110650.0,110640.0,0.18076644]
[1762097875917,0.03551,110650.0,110640.0,0.18076644]
[1762097876151,0.21626011,110650.0,110640.0,0.18076644]
[1762097876387,0.23132011,110650.0,110640.0,0.18076644]
[1762097877039,0.05157,110650.0,110640.0,0.19612644]
[1762097877264,0.02732,110650.0,110640.0,0.19612644]
[1762097877516,0.23232011,110650.0,110640.0,0.20661644]
[1762097877766,0.23232011,110650.0,110640.0,0.19125644]
[1762097877982,0.23532011,110650.0,110640.0,0.19125644]
[1762097878859,0.05457,110650.0,110640.0,0.19125644]
[1762097879081,0.23532011,110650.0,110640.0,0.19125644]
[1762097883242,0.23532011,110650.0,110640.0,0.18076644]
[1762097884814,0.18076644,110640.0,110630.0,0.21384471]
[1762097885040,0.05174,110640.0,110630.0,0.21384471]
[1762097885257,0.07997583,110640.0,110630.0,0.22920471]
[1762097886116,0.07997583,110640.0,110630.0,0.23020471]
[1762097886758,0.07997583,110640.0,110630.0,0.21484471]
[1762097887192,0.07997583,110640.0,110630.0,0.23120471]
[1762097887408,0.02823583,110640.0,110630.0,0.25459471]
[1762097888729,0.04018,110660.0,110650.0,0.18075011]
[1762097888958,0.03118,110660.0,110650.0,0.18075011]
[1762097889190,0.22697377,110660.0,110650.0,0.18075011]
[1762097889427,0.22697377,110660.0,110650.0,0.20791753]
[1762097889889,0.22697377,110660.0,110650.0,0.02716742]
[1762097890102,0.34547453,110660.0,110650.0,0.02716742]
[1762097890343,0.34547453,110660.0,110650.0,0.02816742]
[1762097890562,0.35047453,110660.0,110650.0,0.02816742]
[1762097890998,0.34547453,110660.0,110650.0,0.02816742]
[1762097891439,0.34547453,110660.0,110650.0,0.002]
[1762097892291,0.34547453,110660.0,110650.0,0.18275011]
[1762097892726,0.34547453,110660.0,110650.0,0.002]
[1762097894886,0.68547453,110660.0,110650.0,0.002]
[1762097895560,0.70780267,110660.0,110650.0,0.002]
[1762097895975,0.73497708,110660.0,110650.0,0.001]
[1762097896192,0.18078278,110630.0,110620.0,0.00404844]
[1762097896399,0.20575278,110630.0,110620.0,0.00404844]
[1762097896617,0.25613945,110630.0,110620.0,0.00404844]
[1762097897270,0.25613945,110630.0,110620.0,0.00804844]
[1762097897492,0.25613945,110630.0,110620.0,0.01004844]
[1762097897696,0.25613945,110630.0,110620.0,0.19084757]
[1762097898149,0.22975278,110630.0,110620.0,0.19084757]
[1762097898993,0.22975278,110630.0,110620.0,0.01004844]
[1762097899410,0.22975278,110630.0,110620.0,0.19084757]
[1762097899613,0.22975278,110630.0,110620.0,0.01004844]
[1762097900232,0.22975278,110630.0,110620.0,0.19084757]
[1762097901078,0.22975278,110630.0,110620.0,0.01004844]
[1762097903496,0.04897,110630.0,110620.0,0.19084757]
[1762097903694,0.21402124,110640.0,110620.0,0.24201757]
[1762097903902,0.01593,110630.0,110620.0,0.26293429]
[1762097904102,0.214012,110640.0,110630.0,0.18078278]
[1762097904319,0.03324,110640.0,110630.0,0.19648278]
[1762097904535,0.20593644,110640.0,110630.0,0.20237278]
[1762097904746,0.02517,110640.0,110630.0,0.20237278]
[1762097904955,0.23006644,110640.0,110630.0,0.20237278]
[1762097905181,0.23006644,110640.0,110630.0,0.18667278]
[1762097905392,0.23006644,110640.0,110620.0,0.22409757]
[1762097905600,0.23006644,110640.0,110620.0,0.22209757]
[1762097905814,0.26083906,110640.0,110620.0,0.22209757]
[1762097906026,0.23006644,110640.0,110620.0,0.22009757]
[1762097906226,0.23006644,110640.0,110630.0,0.001]
[1762097906435,0.23006644,110640.0,110630.0,0.002]
[1762097906645,0.23006644,110640.0,110630.0,0.18278278]
[1762097906844,0.23006644,110640.0,110630.0,0.18078278]
[1762097908324,0.23006644,110640.0,110630.0,0.18278278]
[1762097908523,0.23006644,110640.0,110630.0,0.003]
[1762097908879,0.23006644,110640.0,110630.0,0.18378278]
[1762097909987,0.25645311,110640.0,110630.0,0.18378278]
[1762097910397,0.07568667,110640.0,110630.0,0.18378278]
[1762097910625,0.02517,110640.0,110630.0,0.20537278]
[1762097910837,0.22577627,110650.0,110640.0,0.18076644]
[1762097911244,0.24170627,110650.0,110640.0,0.18076644]
[1762097912090,0.24270627,110650.0,110640.0,0.18076644]
[1762097912292,0.05289,110650.0,110640.0,0.18076644]
[1762097912515,0.05289,110650.0,110640.0,0.20695644]
[1762097912724,0.01383,110650.0,110640.0,0.22954644]
[1762097913131,0.02976,110650.0,110640.0,0.22954644]
[1762097913563,0.02876,110650.0,110640.0,0.22954644]
[1762097913769,0.02876,110650.0,110640.0,0.21195644]
[1762097914535,0.01283,110650.0,110640.0,0.21195644]
[1762097914741,0.001,110650.0,110640.0,0.23454644]
[1762097915365,0.30205979,110660.0,110650.0,0.18075011]
[1762097915801,0.31798979,110660.0,110650.0,0.18075011]
[1762097916166,0.34437646,110660.0,110650.0,0.18075011]
[1762097916742,0.34437646,110660.0,110650.0,0.18175011]
[1762097916944,0.1636416,110660.0,110650.0,0.18175011]
[1762097917637,0.34437537,110660.0,110650.0,0.18175011]
[1762097918686,0.34437537,110660.0,110650.0,0.001]
[1762097919847,0.68437537,110660.0,110650.0,0.001]
[1762097920449,0.70387703,110660.0,110650.0,0.001]
[1762097921068,0.18076644,110640.0,110630.0,0.18982162]
[1762097921372,0.20633644,110640.0,110630.0,0.18982162]
[1762097921573,0.23046644,110640.0,110630.0,0.18982162]
[1762097922007,0.23046644,110640.0,110630.0,0.18982191]
[1762097922679,0.23046644,110640.0,110630.0,0.19182191]
[1762097922855,0.23046644,110640.0,110630.0,0.002]
[1762097923291,0.23046644,110640.0,110630.0,0.006]
[1762097924351,0.23046644,110640.0,110630.0,0.18678278]
[1762097925341,0.23046644,110640.0,110630.0,0.006]
[1762097927617,0.23046644,110640.0,110630.0,0.18678278]
[1762097927823,0.23046644,110640.0,110630.0,0.006]
[1762097928030,0.25685311,110640.0,110630.0,0.006]
[1762097928686,0.34711804,110640.0,110630.0,0.006]
[1762097931529,0.25685311,110640.0,110630.0,0.006]
[1762097931684,0.34711804,110640.0,110630.0,0.006]
[1762097932330,0.68711804,110640.0,110630.0,0.006]
[1762097932543,0.70663624,110640.0,110630.0,0.006]
[1762097932932,0.70663624,110640.0,110630.0,0.002]
[1762097933230,0.68711804,110640.0,110630.0,0.002]
[1762097933448,0.68711804,110640.0,110630.0,0.003]
[1762097933868,0.68711804,110640.0,110630.0,0.001]
[1762097934288,0.70663437,110640.0,110630.0,0.002]
[1762097934521,0.70663437,110640.0,110630.0,0.001]
[1762097934738,0.18078278,110630.0,110620.0,0.00404844]
[1762097934962,0.23220278,110630.0,110620.0,0.00404844]
[1762097936049,0.23220278,110630.0,110620.0,0.00504844]
[1762097937157,0.23220278,110630.0,110620.0,0.00604844]
[1762097941196,0.23220278,110630.0,110620.0,0.18684757]
[1762097942254,0.00964,110640.0,110620.0,0.26215985]
[1762097942482,0.009,110680.0,110660.0,0.18073377]
[1762097942483,0.23255738,110680.0,110660.0,0.18073377]
[1762097942693,0.28743124,110710.0,110690.0,0.18067031]
[1762097942923,0.28743124,110710.0,110700.0,0.19066846]
[1762097943134,0.28743124,110710.0,110700.0,0.22979846]
[1762097943363,0.28743124,110710.0,110700.0,0.26928344]
[1762097943782,0.28743124,110710.0,110700.0,0.29643419]
[1762097943783,0.28791567,110710.0,110700.0,0.29643419]
[1762097944435,0.28791567,110710.0,110700.0,0.29743419]
[1762097944645,0.28791567,110710.0,110700.0,0.33361647]
[1762097947800,0.26077924,110710.0,110700.0,0.33361647]
[1762097948011,0.23364281,110710.0,110700.0,0.33361647]
[1762097948219,0.20650638,110710.0,110700.0,0.33361647]
[1762097948428,0.17936995,110710.0,110700.0,0.33361647]
[1762097949120,0.17936995,110710.0,110700.0,0.4006892]
[1762097949469,0.15223352,110710.0,110700.0,0.4006892]
[1762097949668,0.12509709,110710.0,110700.0,0.4006892]
[1762097949887,0.09796066,110710.0,110700.0,0.4006892]
[1762097953718,0.09796066,110710.0,110700.0,0.4131192]
[1762097954865,0.09796066,110710.0,110700.0,0.7531192]
[1762097955088,0.04369036,110710.0,110700.0,0.7531192]
[1762097955314,0.01655521,110710.0,110700.0,0.7531192]
[1762097955743,0.0004,110720.0,110710.0,0.55683443]
[1762097956008,0.0004,110720.0,110710.0,0.7413198]
[1762097956441,0.00061921,110720.0,110710.0,0.7413198]
[1762097956664,0.00061921,110720.0,110710.0,0.7549394]
[1762097957095,0.00061921,110720.0,110710.0,0.7569394]
[1762097957606,0.00061921,110720.0,110710.0,0.7599394]
[1762097958290,0.00061921,110720.0,110710.0,0.66967447]
[1762097958725,0.00061921,110720.0,110710.0,0.68205447]
[1762097962226,0.00061921,110720.0,110710.0,0.62745403]
[1762097963310,0.00061921,110720.0,110710.0,0.62245403]
[1762097970446,0.00061921,110720.0,110710.0,0.23529176]
[1762097970655,0.01566921,110720.0,110710.0,0.24529175]
[1762097971064,0.01566921,110720.0,110710.0,0.21855214]
[1762097971268,0.2309024,110720.0,110710.0,0.21855214]
[1762097971761,0.2309024,110720.0,110710.0,0.24167214]
[1762097972187,0.20764504,110720.0,110710.0,0.24167214]
[1762097972386,0.20764504,110720.0,110710.0,0.26599813]
[1762097973980,0.03000921,110720.0,110710.0,0.26599813]
[1762097974827,0.05610921,110720.0,110710.0,0.21497813]
[1762097975043,0.05610921,110720.0,110710.0,0.23159813]
[1762097975270,0.03200921,110720.0,110710.0,0.23159813]
[1762097975501,0.03200921,110720.0,110710.0,0.26484813]
[1762097975927,0.01695921,110720.0,110710.0,0.26484813]
[1762097977698,0.03200921,110720.0,110710.0,0.24172813]
[1762097977906,0.03200921,110720.0,110710.0,0.26484813]
[1762097978336,0.03200921,110720.0,110710.0,0.26487302]
[1762097979459,0.03200921,110720.0,110710.0,0.24175302]
[1762097979647,0.03200921,110720.0,110710.0,0.26487302]
[1762097981361,0.01695921,110720.0,110710.0,0.26487302]
[1762097981572,0.03200921,110720.0,110710.0,0.26487302]
[1762097985757,0.03200921,110720.0,110710.0,0.24175302]
[1762097986134,0.21264504,110720.0,110710.0,0.24175302]
[1762097986556,0.23742504,110720.0,110710.0,0.24175302]
[1762097986763,0.21264504,110720.0,110710.0,0.26449302]
[1762097987300,0.21264504,110720.0,110710.0,0.24175302]
[1762097987728,0.21264504,110720.0,110710.0,0.06110087]
[1762097988390,0.21264504,110720.0,110710.0,0.24175302]
[1762097989477,0.23742504,110720.0,110710.0,0.23161302]
[1762097989695,0.21264504,110720.0,110710.0,0.24199302]
[1762097989923,0.28044784,110720.0,110710.0,0.24199302]
[1762097990168,0.28044784,110720.0,110710.0,0.06134087]
[1762097990622,0.25566784,110720.0,110710.0,0.24199302]
[1762097990836,0.25566784,110720.0,110710.0,0.26473302]
[1762097991926,0.25566784,110720.0,110710.0,0.08408087]
[1762097992379,0.25566784,110720.0,110710.0,0.26473302]
[1762097992819,0.25566784,110720.0,110710.0,0.24199302]
[1762097993089,0.09981201,110720.0,110710.0,0.24199302]
[1762097993513,0.07503201,110720.0,110710.0,0.24199302]
[1762097993723,0.25566784,110720.0,110710.0,0.24199302]
[1762097994144,0.28044784,110720.0,110710.0,0.24199302]
[1762097994371,0.28044784,110720.0,110710.0,0.21500302]
[1762097995446,0.09981201,110720.0,110710.0,0.21500302]
[1762097995677,0.28044784,110720.0,110710.0,0.21500302]
[1762097996554,0.28044784,110720.0,110710.0,0.23161302]
[1762097996966,0.28044784,110720.0,110710.0,0.21500302]
[1762097999166,0.28044784,110720.0,110710.0,0.03435087]
[1762097999389,0.28044784,110720.0,110710.0,0.02435088]
[1762098000206,0.18065215,110710.0,110700.0,0.25988301]
[1762098000416,0.19659215,110710.0,110700.0,0.27649301]
[1762098001184,0.25441115,110710.0,110700.0,0.27649301]
[1762098001393,0.27919115,110710.0,110700.0,0.05678553]
[1762098001593,0.27919115,110710.0,110700.0,0.02435088]
[1762098001775,0.18066847,110700.0,110690.0,0.06678552]
[1762098001974,0.25528202,110700.0,110690.0,0.06678552]
[1762098002179,0.28207379,110700.0,110690.0,0.21503566]
[1762098002819,0.10140532,110700.0,110690.0,0.21503566]
[1762098003260,0.28207379,110700.0,110690.0,0.21503566]
[1762098003636,0.28407379,110700.0,110690.0,0.21503566]
[1762098003865,0.28407379,110700.0,110690.0,0.24331566]
[1762098004468,0.23769847,110700.0,110690.0,0.22670566]
[1762098005214,0.23769847,110700.0,110690.0,0.20235478]
[1762098005697,0.05703,110700.0,110690.0,0.20235478]
[1762098005909,0.23769847,110700.0,110690.0,0.20235478]
[1762098006086,0.23769847,110700.0,110690.0,0.22670566]
[1762098006250,0.23769847,110700.0,110690.0,0.20235478]
[1762098006454,0.23769847,110700.0,110690.0,0.19068478]
[1762098006657,0.23769847,110700.0,110690.0,0.00999999]
[1762098007485,0.23769847,110700.0,110690.0,0.19068478]
[1762098007849,0.23769847,110700.0,110690.0,0.00999999]
[1762098008892,0.23769847,110700.0,110690.0,0.19068478]
[1762098009536,0.05703,110700.0,110690.0,0.19068478]
[1762098009855,0.23769847,110700.0,110690.0,0.19068478]
[1762098010554,0.05703,110700.0,110690.0,0.19068478]
[1762098011591,0.23769847,110700.0,110690.0,0.19068478]
[1762098012481,0.05703,110700.0,110690.0,0.19068478]
[1762098013266,0.23769847,110700.0,110690.0,0.19068478]
[1762098013690,0.28531543,110700.0,110690.0,0.00999999]
[1762098018928,0.74310163,110630.0,110620.0,0.00448443]
[1762098019160,1.01287059,110630.0,110620.0,0.00448443]
[1762098019636,0.96549101,110630.0,110620.0,0.00448443]
[1762098019861,0.94553808,110630.0,110620.0,0.00448443]
[1762098020086,0.95853808,110630.0,110620.0,0.00448443]
[1762098020313,0.95826581,110630.0,110620.0,0.00448443]
[1762098020542,0.95710186,110630.0,110620.0,0.00448443]
[1762098021014,0.02735,110600.0,110580.0,0.19924376]
[1762098021231,0.20819817,110590.0,110580.0,0.00044844]
[1762098021452,0.25082034,110590.0,110580.0,0.00044844]
[1762098022350,0.25082034,110590.0,110580.0,0.00644844]
[1762098022561,0.25082034,110590.0,110580.0,0.00844844]
[1762098022769,0.25082034,110590.0,110580.0,0.00244844]
[1762098022972,0.32559237,110590.0,110580.0,0.00844844]
[1762098023397,0.18088088,110570.0,110560.0,0.01187]
[1762098023662,0.22787305,110570.0,110560.0,0.00044844]
[1762098023905,0.25247305,110570.0,110560.0,0.00044844]
[1762098025220,0.25247305,110570.0,110560.0,0.00244844]
[1762098025652,0.25247305,110570.0,110560.0,0.00544844]
[1762098026506,0.26468901,110570.0,110560.0,0.00544844]
[1762098027039,0.26468901,110570.0,110560.0,0.18634569]
[1762098027194,0.26468901,110570.0,110560.0,0.00544844]
[1762098030895,0.29793499,110570.0,110560.0,0.00544844]
[1762098031110,0.18089725,110560.0,110550.0,0.1862093]
[1762098031361,0.20058942,110560.0,110550.0,0.005345]
[1762098032001,0.20058942,110560.0,110550.0,0.18625861]
[1762098032205,0.20058942,110560.0,110550.0,4.845e-05]
[1762098032424,0.20058942,110560.0,110550.0,0.00704845]
[1762098032865,0.2338354,110560.0,110550.0,0.00704845]
[1762098033272,0.27652862,110560.0,110550.0,0.00704845]
[1762098034025,0.27652862,110560.0,110550.0,0.00404845]
[1762098034259,0.27752862,110560.0,110550.0,0.00404845]
[1762098034748,0.27752862,110560.0,110550.0,4.845e-05]
[1762098034949,0.27652862,110560.0,110550.0,4.845e-05]
[1762098035389,0.27652862,110560.0,110550.0,0.00304845]
[1762098036552,0.36679355,110560.0,110550.0,0.00304845]
[1762098036994,0.36679355,110560.0,110550.0,4.845e-05]
[1762098037424,0.36779355,110560.0,110550.0,0.00304845]
[1762098037639,0.36779355,110560.0,110550.0,4.845e-05]
[1762098038315,0.36679355,110560.0,110550.0,4.845e-05]
[1762098038531,0.33354757,110560.0,110550.0,4.845e-05]
[1762098038790,0.33354757,110560.0,110550.0,0.00304845]
[1762098040390,0.33354757,110560.0,110540.0,0.18092956]
[1762098040610,0.33354757,110560.0,110540.0,0.18107497]
[1762098040834,0.33454757,110560.0,110540.0,0.18107497]
[1762098041046,0.33454757,110560.0,110540.0,0.17020167]
[1762098041285,0.18091361,110550.0,110540.0,0.17020167]
[1762098041538,0.18091361,110550.0,110540.0,0.00214541]
[1762098041539,0.2520519,110550.0,110540.0,0.00214541]
[1762098041981,0.18092998,110540.0,110520.0,0.19039925]
[1762098042172,0.20062215,110540.0,110520.0,0.19088425]
[1762098042889,0.20062215,110540.0,110530.0,0.18094634]
[1762098043342,0.20062215,110540.0,110520.0,0.19088425]
[1762098043547,0.18094634,110530.0,110520.0,0.19088425]
[1762098043755,0.20063851,110530.0,110520.0,0.18184772]
[1762098043993,0.20063851,110530.0,110520.0,0.000885]
[1762098044195,0.20063851,110530.0,110520.0,0.18184772]
[1762098044404,0.01969217,110530.0,110520.0,0.18184772]
[1762098044606,0.22503054,110530.0,110520.0,0.18184772]
[1762098044782,0.22503054,110530.0,110520.0,0.19184772]
[1762098044999,0.0440842,110530.0,110520.0,0.19184772]
[1762098045200,0.22503054,110530.0,110520.0,0.19184772]
[1762098045582,0.24432497,110530.0,110520.0,0.19184772]
[1762098046216,0.24432497,110530.0,110520.0,0.010885]
[1762098046431,0.24432497,110530.0,110520.0,0.19184772]
[1762098047276,0.26834121,110530.0,110520.0,0.19184772]
[1762098047488,0.29937494,110530.0,110520.0,0.19184772]
[1762098047689,0.2753587,110530.0,110520.0,0.19184772]
[1762098047907,0.09441236,110530.0,110520.0,0.19184772]
[1762098048114,0.06337863,110530.0,110520.0,0.19184772]
[1762098048318,0.12812699,110530.0,110520.0,0.06949804]
[1762098048731,0.10373496,110530.0,110520.0,0.06949804]
[1762098048954,0.0389866,110530.0,110520.0,0.06949804]
[1762098049166,0.10373496,110530.0,110520.0,0.06949804]
[1762098049536,0.10673496,110530.0,110520.0,0.06949804]
[1762098049892,0.0419866,110530.0,110520.0,0.06949804]
[1762098050114,0.0389866,110530.0,110520.0,0.06949804]
[1762098050334,0.0389866,110530.0,110520.0,0.07249804]
[1762098050532,0.0389866,110530.0,110520.0,0.07349804]
[1762098050857,0.02212432,110530.0,110520.0,0.07349804]
[1762098051303,0.08687268,110530.0,110520.0,0.07349804]
[1762098051508,0.09988977,110530.0,110520.0,0.07349804]
[1762098052290,0.08687268,110530.0,110520.0,0.07349804]
[1762098055857,0.02212432,110530.0,110520.0,0.07349804]
[1762098058258,0.08687268,110530.0,110520.0,0.07349804]
[1762098058878,0.26781902,110530.0,110520.0,0.07349804]
[1762098059080,0.08687268,110530.0,110520.0,0.07349804]
[1762098059238,0.11798281,110530.0,110520.0,0.07349804]
[1762098059433,0.29892915,110530.0,110520.0,0.07349804]
[1762098059888,0.11798281,110530.0,110520.0,0.07349804]
[1762098060118,0.23418079,110530.0,110520.0,0.18496272]
[1762098060300,0.29892915,110530.0,110520.0,0.18496272]
[1762098060886,0.29892915,110530.0,110520.0,0.004]
[1762098061082,0.29893134,110530.0,110520.0,0.18496272]
[1762098061283,0.29893134,110530.0,110520.0,0.004]
[1762098061487,0.29893134,110530.0,110520.0,0.18496272]
[1762098063163,0.117985,110530.0,110520.0,0.136024]
[1762098064588,0.29893134,110530.0,110520.0,0.136024]
[1762098064991,0.26782121,110530.0,110520.0,0.136024]
[1762098066066,0.08687487,110530.0,110520.0,0.136024]
[1762098066742,0.08687487,110530.0,110510.0,0.27158012]
[1762098066743,0.18096272,110520.0,110510.0,0.27158012]
[1762098066932,0.25183172,110520.0,110510.0,0.18152445]
[1762098067137,0.20308923,110520.0,110510.0,0.00054536]
[1762098067299,0.34862396,110520.0,110510.0,0.00054536]
[1762098067510,0.34862396,110520.0,110500.0,0.19044376]
[1762098067685,0.04874123,110510.0,110500.0,0.19044376]
[1762098068089,0.24901475,110510.0,110500.0,0.19044376]
[1762098068291,0.25782474,110510.0,110500.0,0.19044376]
[1762098068478,0.30657386,110510.0,110500.0,0.19044376]
[1762098068945,0.33760759,110510.0,110500.0,0.19044376]
[1762098069157,0.29169096,110510.0,110500.0,0.19044376]
[1762098069419,0.29169096,110510.0,110500.0,0.18139547]
[1762098069646,0.30069096,110510.0,110500.0,0.18239547]
[1762098069885,0.36543932,110510.0,110500.0,0.0014]
[1762098070403,0.36943932,110510.0,110500.0,0.0014]
[1762098070857,0.36943932,110510.0,110500.0,0.18239547]
[1762098071425,0.36943932,110510.0,110500.0,0.0014]
[1762098072256,0.18099547,110500.0,110490.0,0.00561334]
[1762098072546,0.46056013,110500.0,110490.0,0.00561334]
[1762098072730,0.4379357,110500.0,110490.0,0.00561334]
[1762098072950,0.37298254,110500.0,110490.0,0.00561334]
[1762098073362,0.43789096,110500.0,110490.0,0.00561334]
[1762098073569,0.40886438,110500.0,110490.0,0.00561334]
[1762098074038,0.41486438,110500.0,110490.0,0.00661334]
[1762098074236,0.34995596,110500.0,110490.0,0.00661334]
[1762098074491,0.75482764,110500.0,110490.0,0.00661334]
[1762098074843,0.68995596,110500.0,110490.0,0.00661334]
[1762098075051,0.69012239,110500.0,110490.0,0.00661334]
[1762098075268,0.7549826,110500.0,110490.0,0.00661334]
[1762098075428,0.78396442,110500.0,110490.0,0.00661334]
[1762098076170,0.78113193,110500.0,110490.0,0.00661334]
[1762098076398,0.66188518,110500.0,110490.0,0.00661334]
[1762098077172,0.64562274,110500.0,110490.0,0.00661334]
[1762098077373,0.73588767,110500.0,110490.0,0.00661334]
[1762098077575,0.74397095,110500.0,110490.0,0.00661334]
[1762098077952,0.71967907,110500.0,110490.0,0.00661334]
[1762098078152,0.71157983,110500.0,110490.0,0.00661334]
[1762098079194,0.74056165,110500.0,110490.0,0.00661334]
[1762098081949,0.71157983,110500.0,110490.0,0.00661334]
[1762098082181,0.59702497,110500.0,110490.0,0.18762519]
[1762098082628,0.59702497,110500.0,110490.0,0.00661334]
[1762098082629,0.6872899,110500.0,110490.0,0.00661334]
[1762098083812,0.6872899,110500.0,110490.0,0.18762519]
[1762098084397,0.0760295,110500.0,110490.0,0.18762519]
[1762098084618,0.23756411,110500.0,110490.0,0.18762519]
[1762098084833,0.25702497,110500.0,110490.0,0.18762519]
[1762098085036,0.05656864,110500.0,110490.0,0.18762519]
[1762098086014,0.008,110500.0,110490.0,0.18762519]
[1762098088223,0.03698182,110500.0,110490.0,0.18762519]
[1762098088801,0.008,110500.0,110490.0,0.18762519]
[1762098090639,0.008,110500.0,110490.0,0.18662519]
[1762098090640,0.002,110500.0,110490.0,0.18662519]
[1762098090847,0.04975264,110520.0,110510.0,0.18097909]
[1762098090992,0.20940867,110530.0,110510.0,0.18097909]
[1762098091198,0.20940867,110530.0,110520.0,0.18096272]
[1762098091637,0.20940867,110530.0,110510.0,0.18097909]
[1762098091846,0.18096272,110520.0,110500.0,0.19003041]
[1762098092198,0.18096272,110520.0,110510.0,0.18097909]
[1762098092406,0.21805836,110520.0,110510.0,0.18097909]
[1762098093377,0.22505836,110520.0,110510.0,0.18197909]
[1762098093811,0.22505836,110520.0,110510.0,0.001]
[1762098094014,0.3367635,110520.0,110510.0,0.001]
[1762098094826,0.36388682,110520.0,110510.0,0.001]
[1762098095973,0.36388682,110520.0,110510.0,0.18197909]
[1762098096661,0.36388682,110520.0,110510.0,0.001]
[1762098096867,0.36388682,110520.0,110510.0,0.18197909]
[1762098097077,0.06553585,110520.0,110510.0,0.18197909]
[1762098097289,0.22705836,110520.0,110510.0,0.18197909]
[1762098100732,0.04609564,110520.0,110510.0,0.18197909]
[1762098103739,0.31732329,110520.0,110510.0,0.001]
[1762098104987,0.33678061,110520.0,110510.0,0.001]
[1762098105186,0.36390393,110520.0,110510.0,0.001]
[1762098108493,0.36390393,110520.0,110510.0,0.18197909]
[1762098109424,0.36390393,110520.0,110510.0,0.20453909]
[1762098109648,0.06555296,110520.0,110510.0,0.21388909]
[1762098109857,0.22705836,110520.0,110510.0,0.21388909]
[1762098110055,0.04609564,110520.0,110510.0,0.21388909]
[1762098110399,0.22705836,110520.0,110510.0,0.21388909]
[1762098110790,0.22705836,110520.0,110510.0,0.03291]
[1762098111481,0.22705836,110520.0,110510.0,0.01035]
[1762098111869,0.23891836,110520.0,110510.0,0.01035]
[1762098112069,0.26236836,110520.0,110510.0,0.01035]
[1762098112948,0.22705836,110520.0,110510.0,0.19132909]
[1762098113121,0.04609564,110520.0,110510.0,0.21388909]
[1762098113914,0.22705836,110520.0,110510.0,0.21388909]
[1762098114297,0.24656174,110520.0,110510.0,0.21388909]
[1762098116522,0.25842174,110520.0,110510.0,0.01035]
[1762098116700,0.28187174,110520.0,110510.0,0.01035]
[1762098117055,0.37213667,110520.0,110510.0,0.001]
[1762098118176,0.39752065,110520.0,110510.0,0.001]
[1762098122705,0.97370293,110520.0,110510.0,0.001]
[1762098122922,1.06042427,110520.0,110510.0,0.001]
[1762098123116,1.11688911,110520.0,110510.0,0.001]
[1762098123336,1.06829134,110520.0,110510.0,0.001]
[1762098123555,1.06829134,110520.0,110490.0,0.00561334]
[1762098123556,0.18099547,110500.0,110490.0,0.00561334]
[1762098123773,0.38255114,110500.0,110490.0,0.00561334]
[1762098123993,0.38337671,110500.0,110490.0,0.00561334]
[1762098124393,0.92337671,110500.0,110490.0,0.00561334]
[1762098124871,0.93337671,110500.0,110490.0,0.00661334]
[1762098125832,0.93637671,110500.0,110490.0,0.00661334]
[1762098128945,0.9777397,110500.0,110490.0,0.00661334]
[1762098129612,0.96853371,110500.0,110490.0,0.00661334]
[1762098131664,0.98471371,110500.0,110490.0,0.00661334]
[1762098135227,0.95255671,110500.0,110490.0,0.00661334]
[1762098135694,0.92717273,110500.0,110490.0,0.00661334]
[1762098137682,0.95932973,110500.0,110490.0,0.00661334]
[1762098138644,0.98653441,110500.0,110490.0,0.00661334]
[1762098139284,1.01091053,110500.0,110490.0,0.00661334]
[1762098144003,0.98370585,110500.0,110490.0,0.00661334]
[1762098145236,0.98653952,110500.0,110490.0,0.00661334]
[1762098145450,1.01892869,110500.0,110490.0,0.00661334]
[1762098146100,1.01892874,110500.0,110490.0,0.00661334]
[1762098147279,0.99455262,110500.0,110490.0,0.00661334]
[1762098149141,1.01890361,110500.0,110490.0,0.00661334]
[1762098149345,0.94712433,110500.0,110490.0,0.03204334]
[1762098149545,0.96362433,110500.0,110490.0,0.03204334]
[1762098149747,0.93954433,110500.0,110490.0,0.05596334]
[1762098149946,0.92082144,110500.0,110490.0,0.05596334]
[1762098150148,0.92082144,110500.0,110490.0,0.03204334]
[1762098150402,0.93270144,110500.0,110490.0,0.03204334]
[1762098152199,0.98993061,110500.0,110490.0,0.03204334]